fUSD/lending_fUSD_20260505
["ID","MTS","AMOUNT","RATE_DAILY","PERIOD"]
[421627949,1777995045000,-500.0,0.00039999,2]
[421627946,1777995045000,-500.0,0.00039999,2]
[421627941,1777995045000,-500.0,0.00039999,2]
[421627952,1777995045000,-2773.2,0.00039999,2]
[421627963,1777995045000,-563.93,0.00039999,2]
[421627951,1777995045000,-2773.2,0.00039999,2]
[421627930,1777995045000,-857.48,0.00039999,2]
[421627953,1777995045000,-2773.2,0.00039999,2]
[421627947,1777995045000,-500.0,0.00039999,2]
[421627928,1777995045000,-857.48,0.00039999,2]
[421627910,1777995045000,-563.93,0.00039899,2]
[421627927,1777995045000,-857.48,0.00039999,2]
[421627962,1777995045000,-563.93,0.00039999,2]
[421627908,1777995045000,-500.0,0.00039898,2]
[421627909,1777995045000,-500.0,0.00039899,2]
[421627902,1777995045000,-173.7858076,0.00039851,2]
[421627904,1777995045000,-2293.6594396,0.00039851,2]
[421627907,1777995045000,-500.0,0.00039898,2]
[421627906,1777995045000,-857.48,0.00039898,2]
[421627903,1777995045000,-369.39813,0.00039851,2]
[421627905,1777995045000,-2754.08703901,0.00039878,2]
[421627921,1777995045000,-669.15700923,0.000399,2]
[421627922,1777995045000,-1054.71,0.0003996,7]
[421627933,1777995045000,-857.48,0.00039999,2]
[421627911,1777995045000,-789.51,0.00039899,2]
[421627920,1777995045000,-208.40443353,0.000399,8]
[421627912,1777995045000,-897.01,0.00039899,2]
[421627918,1777995045000,-175.07971654,0.000399,2]
[421627914,1777995045000,-3317.68,0.00039899,2]
[421627913,1777995045000,-510.6,0.00039899,2]
[421627917,1777995045000,-934.97,0.000399,14]
[421627919,1777995045000,-198.36461732,0.000399,2]
[421627924,1777995045000,-500.0,0.00039973,5]
[421627934,1777995045000,-857.48,0.00039999,2]
[421627936,1777995045000,-500.0,0.00039999,2]
[421627923,1777995045000,-150.0,0.00039973,5]
[421627916,1777995045000,-419.2,0.000399,30]
[421627954,1777995045000,-2773.2,0.00039999,2]
[421627915,1777995045000,-100113.18182039,0.000399,120]
[421627956,1777995045000,-2773.2,0.00039999,2]
[421627988,1777995045000,-510.6,0.00039999,2]
[421627984,1777995045000,-897.01,0.00039999,2]
[421627986,1777995045000,-165.2664,0.00039999,2]
[421627991,1777995045000,-510.6,0.00039999,2]
[421627994,1777995045000,-510.6,0.00039999,2]
[421627993,1777995045000,-510.6,0.00039999,2]
[421627995,1777995045000,-3317.68,0.00039999,2]
[421627992,1777995045000,-510.6,0.00039999,2]
[421628002,1777995045000,-3317.68,0.00039999,2]
[421628003,1777995045000,-887.0,0.0004,2]
[421628001,1777995045000,-3317.68,0.00039999,2]
[421627985,1777995045000,-897.01,0.00039999,2]
[421627999,1777995045000,-3317.68,0.00039999,2]
[421628004,1777995045000,-39500.0,0.0004,7]
[421628000,1777995045000,-3317.68,0.00039999,2]
[421627997,1777995045000,-3317.68,0.00039999,2]
[421627996,1777995045000,-3317.68,0.00039999,2]
[421628005,1777995045000,-63053.22840134,0.0004,120]
[421628006,1777995045000,-11254.26800399,0.0004,120]
[421628009,1777995045000,-3535.0,0.00038643,2]
[421628008,1777995045000,-433.0,0.000293,5]
[421628011,1777995045000,-43.03895798,0.0004,120]
[421628010,1777995045000,-4193.1,0.0004,120]
[421627955,1777995045000,-2773.2,0.00039999,2]
[421628014,1777995045000,-7296.80004447,0.0004,120]
[421627983,1777995045000,-897.01,0.00039999,2]
[421627998,1777995045000,-3317.68,0.00039999,2]
[421627987,1777995045000,-510.6,0.00039999,2]
[421627958,1777995045000,-2773.2,0.00039999,2]
[421627959,1777995045000,-563.93,0.00039999,2]
[421627957,1777995045000,-2773.2,0.00039999,2]
[421627961,1777995045000,-563.93,0.00039999,2]
[421627964,1777995045000,-563.93,0.00039999,2]
[421627966,1777995045000,-563.93,0.00039999,2]
[421627965,1777995045000,-563.93,0.00039999,2]
[421627960,1777995045000,-563.93,0.00039999,2]
[421627968,1777995045000,-500.0,0.00039999,2]
[421627981,1777995045000,-897.01,0.00039999,2]
[421627969,1777995045000,-269.16,0.00039999,2]
[421627970,1777995045000,-789.51,0.00039999,2]
[421627976,1777995045000,-789.51,0.00039999,2]
[421627967,1777995045000,-500.0,0.00039999,2]
[421627980,1777995045000,-897.01,0.00039999,2]
[421627978,1777995045000,-897.01,0.00039999,2]
[421627971,1777995045000,-789.51,0.00039999,2]
[421627990,1777995045000,-510.6,0.00039999,2]
[421627989,1777995045000,-510.6,0.00039999,2]
[421627982,1777995045000,-897.01,0.00039999,2]
[421627972,1777995045000,-789.51,0.00039999,2]
[421627975,1777995045000,-789.51,0.00039999,2]
[421627977,1777995045000,-789.51,0.00039999,2]
[421627973,1777995045000,-789.51,0.00039999,2]
[421627974,1777995045000,-789.51,0.00039999,2]
[421627979,1777995045000,-897.01,0.00039999,2]
[421628017,1777995046000,-23.03497853,0.00033891,2]
[421628016,1777995046000,-310.546,0.00038499,2]
[421628015,1777995046000,181.28,0.00024658,2]
[421628028,1777995049000,203.3153538,0.0002,10]
[421628032,1777995056000,716.30406405,0.00023,2]
[421628036,1777995060000,10000.01,0.000107,2]
[421628037,1777995060000,5000.01,0.000107,2]
[421628035,1777995060000,10000.01,0.000107,2]
[421628038,1777995060000,203930.74920425,0.000107,2]
[421628034,1777995060000,10000.01,0.000107,2]
[421628039,1777995162000,352.55,0.00020951,2]
[421628041,1777995163000,523.0,0.00022,2]
[421628040,1777995163000,322.14,0.00022562,2]
[421628042,1777995248000,2154.852737,7.945e-05,2]
[421628043,1777995259000,1871.93916517,0.000107,2]
[421628045,1777995271000,309.48193511,0.000107,2]
[421628051,1777995408000,179.21,0.0002342,2]
[421628050,1777995408000,179.21,0.00018736,2]
[421628053,1777995523000,524.0,0.00022,2]
[421628054,1777995883000,524.0,0.00022,2]
[421628055,1777995903000,200.0,0.00021275,2]
[421628056,1777995914000,930.34,0.00021275,2]
[421628057,1777995930000,-247.64508266,0.00025367,2]
[421628060,1777996026000,-300.51868379,0.00025367,2]
[421628059,1777996026000,-411.51960761,0.00025367,2]
[421628061,1777996039000,-245.12620752,0.00025367,2]
[421628062,1777996051000,-189.70001719,0.00025367,2]
[421628063,1777996148000,-534.0,0.00022,2]
[421628065,1777996148000,-500.0,0.00025,7]
[421628064,1777996148000,-485.0,0.00022,2]
[421628066,1777996148000,-300.0,0.00025496,2]
[421628075,1777996148000,-1005.84,0.00027525,2]
[421628067,1777996148000,-1200.0,0.00025496,2]
[421628069,1777996148000,-300.0,0.00025498,2]
[421628070,1777996148000,-16853.83027484,0.00025499,2]
[421628071,1777996148000,-810.0,0.00025499,2]
[421628074,1777996148000,-1005.84,0.00026763,2]
[421628072,1777996148000,-58055.40990882,0.000255,2]
[421628068,1777996148000,-300.0,0.00025496,2]
[421628076,1777996148000,-150.0,0.00027537,2]
[421628073,1777996148000,-1005.84,0.00026,2]
[421628087,1777996148000,-143.24007093,0.00030575,30]
[421628086,1777996148000,-753.0,0.00030161,2]
[421628085,1777996148000,-1005.84,0.00029813,2]
[421628082,1777996148000,-179.21,0.00028104,2]
[421628083,1777996148000,-1005.84,0.00028288,2]
[421628081,1777996148000,-384.22620767,0.00027904,30]
[421628079,1777996148000,-2491.12,0.00027732,2]
[421628080,1777996148000,-1020.57,0.00027732,2]
[421628077,1777996148000,-1680.0,0.00027731,2]
[421628084,1777996148000,-1005.84,0.0002905,2]
[421628093,1777996154000,-286.65485468,0.00033191,2]
[421628088,1777996154000,-862.59992907,0.00030575,30]
[421628089,1777996154000,-1005.84,0.00031338,30]
[421628090,1777996154000,-153.58,0.00032072,2]
[421628092,1777996154000,-179.21,0.00032788,2]
[421628094,1777996154000,-273.1474,0.00033791,2]
[421628091,1777996154000,-1005.84,0.000321,30]
[421628096,1777996154000,-284.14454834,0.00033891,2]
[421628100,1777996154000,-596.386,0.00034874,40]
[421628097,1777996154000,-174.90454226,0.00033891,2]
[421628098,1777996154000,-150.88826,0.0003401,60]
[421628099,1777996154000,-2000.0,0.00034615,2]
[421628101,1777996154000,-1645.31078319,0.00035,120]
[421628095,1777996154000,-335.47957646,0.00033891,2]
[421628102,1777996155000,500.0,0.000253,7]
[421628103,1777996158000,500.0,0.000258,7]
[421628104,1777996163000,500.0,0.000258,7]
[421628105,1777996168000,162.51838138,0.0003048,2]
[421628106,1777996170000,-3396.06921681,0.00035,120]
[421628107,1777996179000,300.0,0.000258,7]
[421628110,1777996187000,877.36,0.00020168,2]
[421628109,1777996187000,877.36,0.0001916,2]
[421628115,1777996188000,877.36,0.00024202,2]
[421628114,1777996188000,877.36,0.00023193,2]
[421628113,1777996188000,877.36,0.00022185,2]
[421628112,1777996188000,618.73095681,0.00021176,2]
[421628111,1777996188000,258.62904319,0.00021176,2]
[421628116,1777996189000,877.36,0.0002521,2]
[421628117,1777996189000,877.36,0.00026219,2]
[421628120,1777996189000,877.36,0.00029244,2]
[421628119,1777996189000,877.36,0.00028235,2]
[421628118,1777996189000,877.36,0.00027227,2]
[421628124,1777996190000,877.36,0.00033277,2]
[421628123,1777996190000,877.36,0.00032269,2]
[421628122,1777996190000,877.36,0.00031261,2]
[421628121,1777996190000,877.36,0.00030252,2]
[421628125,1777996191000,658.74803435,0.00034286,2]
[421628126,1777996228000,219.36,0.00024658,2]
[421628170,1777996232000,-1124.71460331,0.00038253,15]
[421628166,1777996232000,-1124.71460331,0.00038253,15]
[421628162,1777996232000,-1124.71460331,0.00038253,15]
[421628169,1777996232000,-1124.71460331,0.00038253,15]
[421628167,1777996232000,-1124.71460331,0.00038253,15]
[421628163,1777996232000,-1124.71460331,0.00038253,15]
[421628168,1777996232000,-1124.71460331,0.00038253,15]
[421628176,1777996232000,-1124.71460331,0.00038253,15]
[421628160,1777996232000,-1124.71460331,0.00038253,15]
[421628159,1777996232000,-1124.71460331,0.00038253,15]
[421628164,1777996232000,-1124.71460331,0.00038253,15]
[421628173,1777996232000,-1124.71460331,0.00038253,15]
[421628171,1777996232000,-1124.71460331,0.00038253,15]
[421628174,1777996232000,-1124.71460331,0.00038253,15]
[421628181,1777996232000,-1124.71460331,0.00038253,15]
[421628175,1777996232000,-1124.71460331,0.00038253,15]
[421628172,1777996232000,-1124.71460331,0.00038253,15]
[421628178,1777996232000,-1124.71460331,0.00038253,15]
[421628184,1777996232000,-1124.71460331,0.00038253,15]
[421628180,1777996232000,-1124.71460331,0.00038253,15]
[421628165,1777996232000,-1124.71460331,0.00038253,15]
[421628179,1777996232000,-1124.71460331,0.00038253,15]
[421628182,1777996232000,-1124.71460331,0.00038253,15]
[421628183,1777996232000,-1124.71460331,0.00038253,15]
[421628185,1777996232000,-1124.71460331,0.00038253,15]
[421628177,1777996232000,-1124.71460331,0.00038253,15]
[421628161,1777996232000,-1124.71460331,0.00038253,15]
[421628133,1777996232000,-343.69663388,0.000318,2]
[421628157,1777996232000,-182.11916908,0.00038253,15]
[421628130,1777996232000,-343.6966339,0.000318,2]
[421628132,1777996232000,-761.0,0.000318,2]
[421628131,1777996232000,-343.69663388,0.000318,2]
[421628142,1777996232000,-400.0,0.00038177,2]
[421628134,1777996232000,-218.61196565,0.00034286,2]
[421628137,1777996232000,-2437.3297,0.0003723,2]
[421628135,1777996232000,-877.36,0.00035294,2]
[421628138,1777996232000,-877.36,0.00037311,2]
[421628139,1777996232000,-153.58,0.00037417,2]
[421628136,1777996232000,-877.36,0.00036303,2]
[421628140,1777996232000,-152.02,0.00037439,2]
[421628141,1777996232000,-179.21,0.00037472,2]
[421628158,1777996232000,-1124.71460331,0.00038253,15]
[421628143,1777996232000,-1600.0,0.00038177,3]
[421628150,1777996232000,-1124.71460331,0.00038253,15]
[421628153,1777996232000,-1124.71460331,0.00038253,15]
[421628144,1777996232000,-550.32129729,0.00038253,15]
[421628152,1777996232000,-1124.71460331,0.00038253,15]
[421628151,1777996232000,-1124.71460331,0.00038253,15]
[421628149,1777996232000,-1124.71460331,0.00038253,15]
[421628147,1777996232000,-1124.71460331,0.00038253,15]
[421628148,1777996232000,-1124.71460331,0.00038253,15]
[421628145,1777996232000,-1124.71460331,0.00038253,15]
[421628154,1777996232000,-500.0,0.00038253,15]
[421628146,1777996232000,-1124.71460331,0.00038253,15]
[421628156,1777996232000,-1124.71460331,0.00038253,15]
[421628155,1777996232000,-1124.71460331,0.00038253,15]
[421628188,1777996232000,-1124.71460331,0.00038253,15]
[421628194,1777996232000,-1124.71460331,0.00038253,15]
[421628187,1777996232000,-1124.71460331,0.00038253,15]
[421628219,1777996232000,-910.5100073,0.00038253,15]
[421628221,1777996232000,-1121.6748341,0.00038253,15]
[421628222,1777996232000,-1121.6748341,0.00038253,15]
[421628224,1777996232000,-1121.6748341,0.00038253,15]
[421628233,1777996232000,-1121.6748341,0.00038253,15]
[421628230,1777996232000,-1121.6748341,0.00038253,15]
[421628232,1777996232000,-1121.6748341,0.00038253,15]
[421628231,1777996232000,-1121.6748341,0.00038253,15]
[421628234,1777996232000,-1121.6748341,0.00038253,15]
[421628223,1777996232000,-1121.6748341,0.00038253,15]
[421628226,1777996232000,-1121.6748341,0.00038253,15]
[421628229,1777996232000,-1121.6748341,0.00038253,15]
[421628227,1777996232000,-1121.6748341,0.00038253,15]
[421628228,1777996232000,-1121.6748341,0.00038253,15]
[421628225,1777996232000,-1121.6748341,0.00038253,15]
[421628237,1777996232000,-94840.86089652,0.00038256,2]
[421628236,1777996232000,-488.3784,0.00038256,2]
[421628238,1777996232000,-4102.29690348,0.00038256,2]
[421628244,1777996232000,-500.0,0.00038356,2]
[421628242,1777996232000,-877.36,0.00038319,2]
[421628239,1777996232000,-300.0,0.00038279,2]
[421628243,1777996232000,-504.48712197,0.00038356,2]
[421628241,1777996232000,-195.58,0.00038319,120]
[421628240,1777996232000,-150.88826,0.0003828,120]
[421628190,1777996232000,-1124.71460331,0.00038253,15]
[421628220,1777996232000,-1121.6748341,0.00038253,15]
[421628218,1777996232000,-211.1648268,0.00038253,15]
[421628235,1777996232000,-1121.6748341,0.00038253,15]
[421628211,1777996232000,-1121.6748341,0.00038253,15]
[421628191,1777996232000,-1124.71460331,0.00038253,15]
[421628213,1777996232000,-1121.6748341,0.00038253,15]
[421628186,1777996232000,-1124.71460331,0.00038253,15]
[421628189,1777996232000,-1124.71460331,0.00038253,15]
[421628192,1777996232000,-1124.71460331,0.00038253,15]
[421628198,1777996232000,-1121.6748341,0.00038253,15]
[421628197,1777996232000,-1124.71460331,0.00038253,15]
[421628196,1777996232000,-1124.71460331,0.00038253,15]
[421628200,1777996232000,-1121.6748341,0.00038253,15]
[421628201,1777996232000,-1121.6748341,0.00038253,15]
[421628202,1777996232000,-1121.6748341,0.00038253,15]
[421628205,1777996232000,-1121.6748341,0.00038253,15]
[421628195,1777996232000,-1124.71460331,0.00038253,15]
[421628193,1777996232000,-1124.71460331,0.00038253,15]
[421628204,1777996232000,-1121.6748341,0.00038253,15]
[421628199,1777996232000,-1121.6748341,0.00038253,15]
[421628207,1777996232000,-1121.6748341,0.00038253,15]
[421628215,1777996232000,-1121.6748341,0.00038253,15]
[421628217,1777996232000,-1121.6748341,0.00038253,15]
[421628216,1777996232000,-1121.6748341,0.00038253,15]
[421628208,1777996232000,-1121.6748341,0.00038253,15]
[421628209,1777996232000,-1121.6748341,0.00038253,15]
[421628214,1777996232000,-1121.6748341,0.00038253,15]
[421628212,1777996232000,-1121.6748341,0.00038253,15]
[421628206,1777996232000,-1121.6748341,0.00038253,15]
[421628203,1777996232000,-1121.6748341,0.00038253,15]
[421628210,1777996232000,-1121.6748341,0.00038253,15]
[421628257,1777996233000,-150.0,0.0003875,120]
[421628254,1777996233000,-150.0,0.000385,120]
[421628261,1777996233000,-150.0,0.00039,120]
[421628267,1777996233000,-527.27,0.0003934,2]
[421628264,1777996233000,-568.1795741,0.0003934,2]
[421628271,1777996233000,-340.60220378,0.0003934,2]
[421628272,1777996233000,-636.374,0.00039341,2]
[421628270,1777996233000,-500.0,0.0003934,2]
[421628268,1777996233000,-175.69204752,0.0003934,2]
[421628255,1777996233000,-150.0,0.000385,120]
[421628263,1777996233000,-150.0,0.0003925,120]
[421628251,1777996233000,-500.0,0.00038356,2]
[421628250,1777996233000,-538.03473045,0.00038356,2]
[421628256,1777996233000,-150.0,0.0003875,120]
[421628252,1777996233000,-500.0,0.00038356,2]
[421628249,1777996233000,-500.0,0.00038356,2]
[421628258,1777996233000,-871.48600568,0.00038799,2]
[421628259,1777996233000,-2000.0,0.00038942,2]
[421628260,1777996233000,-150.0,0.00039,120]
[421628247,1777996233000,-500.0,0.00038356,2]
[421628248,1777996233000,-500.0,0.00038356,2]
[421628246,1777996233000,-500.0,0.00038356,2]
[421628245,1777996233000,-500.0,0.00038356,2]
[421628273,1777996233000,-200.707,0.00039341,2]
[421628253,1777996233000,-1992.23,0.00038356,2]
[421628265,1777996233000,-555.13,0.0003934,2]
[421628262,1777996233000,-150.0,0.0003925,120]
[421628269,1777996233000,-500.0,0.0003934,2]
[421628297,1777996233000,-508.61,0.0003971,30]
[421628296,1777996233000,-1254.41808677,0.0003971,30]
[421628294,1777996233000,-8591.60738626,0.00039673,2]
[421628295,1777996233000,-6240.06493938,0.0003971,30]
[421628290,1777996233000,-160.0,0.000396,72]
[421628292,1777996233000,-2500.0,0.00039609,2]
[421628288,1777996233000,-200.0,0.00039526,20]
[421628289,1777996233000,-219.8,0.0003955,120]
[421628291,1777996233000,-222.22222,0.000396,115]
[421628287,1777996233000,-16181.23406587,0.000395,2]
[421628283,1777996233000,-4156.58343553,0.000395,2]
[421628280,1777996233000,-150.0,0.00039405,120]
[421628293,1777996233000,-222.22223,0.0003965,116]
[421628279,1777996233000,-150.0,0.00039405,120]
[421628281,1777996233000,-150.0,0.00039405,120]
[421628275,1777996233000,-1267.0,0.00039341,2]
[421628285,1777996233000,-150.0,0.000395,120]
[421628274,1777996233000,-1350.0,0.00039341,2]
[421628286,1777996233000,-33724.34813911,0.000395,2]
[421628266,1777996233000,-1172.87,0.0003934,2]
[421628298,1777996233000,-1188.79418314,0.0003971,30]
[421628277,1777996233000,-3624.0,0.00039341,2]
[421628278,1777996233000,-1244.64,0.00039343,2]
[421628276,1777996233000,-416.0,0.00039341,2]
[421628284,1777996233000,-150.0,0.000395,120]
[421628282,1777996233000,-150.0,0.00039405,120]
[421628306,1777996238000,-580.99067045,0.00038799,2]
[421628309,1777996238000,-263.36630388,0.0003971,30]
[421628307,1777996238000,-7692.637517,0.0003971,30]
[421628310,1777996238000,-46596.65397,0.0003971,30]
[421628311,1777996238000,-1465.35479139,0.0003971,30]
[421628312,1777996238000,-3625.13384008,0.0003971,30]
[421628308,1777996238000,-976.94185624,0.0003971,30]
[421628416,1777996240000,-491.42396994,0.0003971,30]
[421628415,1777996240000,-27.23624528,0.0003971,30]
[421628419,1777996240000,-2880.93654284,0.0003971,30]
[421628418,1777996240000,-387.32711363,0.00038799,2]
[421628420,1777996240000,-2177.39798605,0.0003971,30]
[421628417,1777996240000,-1557.38467929,0.0003971,30]
[421628446,1777996243000,-150.0,0.0003975,120]
[421628442,1777996243000,-344.66,0.00039341,2]
[421628443,1777996243000,-621.0,0.00039341,2]
[421628445,1777996243000,-25912.75599801,0.0003971,30]
[421628444,1777996243000,-5075.34,0.00039341,2]
[421628449,1777996243000,-629.23497869,0.00039773,5]
[421628450,1777996243000,-41355.6875063,0.00039777,2]
[421628447,1777996243000,-150.0,0.0003975,120]
[421628441,1777996243000,521.0,0.0002562,2]
[421628451,1777996243000,-500.0,0.00039792,2]
[421628453,1777996243000,-1992.23,0.00039792,2]
[421628448,1777996243000,-12100.1210429,0.00039756,2]
[421628459,1777996243000,-1172.87,0.00039895,2]
[421628460,1777996243000,-527.27,0.00039895,2]
[421628458,1777996243000,-555.13,0.00039895,2]
[421628456,1777996243000,-8591.60738621,0.00039865,2]
[421628452,1777996243000,-500.0,0.00039792,2]
[421628457,1777996243000,-525.68737698,0.0003989,2]
[421628455,1777996243000,-166.22915442,0.000398,2]
[421628454,1777996243000,-5000.0,0.000398,2]
[421628485,1777996244000,-1172.87,0.00039899,2]
[421628486,1777996244000,-1172.87,0.00039899,2]
[421628482,1777996244000,-1172.87,0.00039899,2]
[421628479,1777996244000,-555.13,0.00039899,2]
[421628484,1777996244000,-1172.87,0.00039899,2]
[421628481,1777996244000,-555.13,0.00039899,2]
[421628483,1777996244000,-1172.87,0.00039899,2]
[421628494,1777996244000,-500.0,0.00039899,2]
[421628491,1777996244000,-500.0,0.00039899,2]
[421628490,1777996244000,-1172.87,0.00039899,2]
[421628480,1777996244000,-555.13,0.00039899,2]
[421628489,1777996244000,-1172.87,0.00039899,2]
[421628492,1777996244000,-500.0,0.00039899,2]
[421628493,1777996244000,-500.0,0.00039899,2]
[421628497,1777996244000,-527.27,0.00039899,2]
[421628488,1777996244000,-1172.87,0.00039899,2]
[421628476,1777996244000,-555.13,0.00039899,2]
[421628464,1777996244000,-500.0,0.00039896,2]
[421628478,1777996244000,-555.13,0.00039899,2]
[421628461,1777996244000,-500.0,0.00039895,2]
[421628462,1777996244000,-500.0,0.00039895,2]
[421628463,1777996244000,-500.0,0.00039896,2]
[421628465,1777996244000,-500.0,0.00039896,2]
[421628471,1777996244000,-198.15889804,0.00039899,2]
[421628466,1777996244000,-191.66210755,0.00039896,2]
[421628498,1777996244000,-527.27,0.00039899,2]
[421628487,1777996244000,-1172.87,0.00039899,2]
[421628468,1777996244000,-500.0,0.00039899,2]
[421628467,1777996244000,-500.0,0.00039896,2]
[421628474,1777996244000,-555.13,0.00039899,2]
[421628473,1777996244000,-555.13,0.00039899,2]
[421628469,1777996244000,-500.0,0.00039899,2]
[421628472,1777996244000,-447.85151678,0.00039899,10]
[421628475,1777996244000,-555.13,0.00039899,2]
[421628477,1777996244000,-555.13,0.00039899,2]
[421628470,1777996244000,-500.0,0.00039899,2]
[421628495,1777996244000,-319.79499159,0.00039899,2]
[421628528,1777996244000,-500.0,0.00039899,2]
[421628496,1777996244000,-527.27,0.00039899,2]
[421628518,1777996244000,-500.0,0.00039899,2]
[421628523,1777996244000,-500.0,0.00039899,2]
[421628522,1777996244000,-500.0,0.00039899,2]
[421628521,1777996244000,-500.0,0.00039899,2]
[421628525,1777996244000,-500.0,0.00039899,2]
[421628526,1777996244000,-500.0,0.00039899,2]
[421628527,1777996244000,-500.0,0.00039899,2]
[421628529,1777996244000,-355.8,0.00039899,2]
[421628532,1777996244000,-500.0,0.00039899,2]
[421628533,1777996244000,-500.0,0.00039899,2]
[421628534,1777996244000,-500.0,0.00039899,2]
[421628530,1777996244000,-500.0,0.00039899,2]
[421628535,1777996244000,-64.57444164,0.00039899,2]
[421628531,1777996244000,-481.21172977,0.00039899,2]
[421628499,1777996244000,-527.27,0.00039899,2]
[421628517,1777996244000,-500.0,0.00039899,2]
[421628516,1777996244000,-500.0,0.00039899,2]
[421628520,1777996244000,-500.0,0.00039899,2]
[421628513,1777996244000,-500.0,0.00039899,2]
[421628510,1777996244000,-500.0,0.00039899,2]
[421628501,1777996244000,-527.27,0.00039899,2]
[421628502,1777996244000,-527.27,0.00039899,2]
[421628511,1777996244000,-485.200218,0.00039899,2]
[421628500,1777996244000,-527.27,0.00039899,2]
[421628512,1777996244000,-500.0,0.00039899,2]
[421628519,1777996244000,-500.0,0.00039899,2]
[421628504,1777996244000,-527.27,0.00039899,2]
[421628503,1777996244000,-527.27,0.00039899,2]
[421628509,1777996244000,-500.0,0.00039899,2]
[421628507,1777996244000,-500.0,0.00039899,2]
[421628508,1777996244000,-500.0,0.00039899,2]
[421628505,1777996244000,-500.0,0.00039899,2]
[421628514,1777996244000,-500.0,0.00039899,2]
[421628524,1777996244000,-553.12281192,0.00039899,2]
[421628515,1777996244000,-500.0,0.00039899,2]
[421628506,1777996244000,-500.0,0.00039899,2]
[421628539,1777996246000,-253.12564164,0.00039899,2]
[421628540,1777996246000,-1739.10435836,0.00039899,2]
[421628537,1777996246000,-500.0,0.00039899,2]
[421628542,1777996246000,-1992.23,0.00039899,2]
[421628536,1777996246000,-435.42555836,0.00039899,2]
[421628538,1777996246000,-1992.23,0.00039899,2]
[421628543,1777996246000,-834.05515891,0.00039899,2]
[421628544,1777996246000,-1158.17484109,0.00039899,2]
[421628546,1777996246000,-1992.23,0.00039899,2]
[421628547,1777996246000,-1992.23,0.00039899,2]
[421628545,1777996246000,-1992.23,0.00039899,2]
[421628541,1777996246000,-1992.23,0.00039899,2]
[421628548,1777996246000,-1465.29612254,0.00039899,2]
[421628590,1777996247000,-1386.78395259,0.00039999,7]
[421628575,1777996247000,-525.68737698,0.0003999,7]
[421628576,1777996247000,-555.13,0.00039999,2]
[421628574,1777996247000,-152.0,0.00039982,7]
[421628577,1777996247000,-555.13,0.00039999,2]
[421628586,1777996247000,-1172.87,0.00039999,2]
[421628583,1777996247000,-555.13,0.00039999,2]
[421628579,1777996247000,-555.13,0.00039999,2]
[421628566,1777996247000,-500.0,0.00039899,31]
[421628580,1777996247000,-555.13,0.00039999,2]
[421628581,1777996247000,-555.13,0.00039999,2]
[421628578,1777996247000,-555.13,0.00039999,2]
[421628584,1777996247000,-501.49036166,0.00039999,7]
[421628582,1777996247000,-555.13,0.00039999,2]
[421628585,1777996247000,-1172.87,0.00039999,2]
[421628570,1777996247000,-162.74,0.000399,30]
[421628568,1777996247000,-158.0,0.000399,5]
[421628572,1777996247000,-9773.08303476,0.000399,2]
[421628564,1777996247000,-500.0,0.00039899,31]
[421628569,1777996247000,-200.0,0.000399,30]
[421628559,1777996247000,-359.42833133,0.00039899,31]
[421628571,1777996247000,-182.76114761,0.000399,2]
[421628567,1777996247000,-159.0,0.000399,5]
[421628573,1777996247000,-4886.2064287,0.000399,2]
[421628560,1777996247000,-181.8675966,0.00039899,31]
[421628558,1777996247000,-500.0,0.00039899,31]
[421628554,1777996247000,-187.33158869,0.00039899,31]